fUST/lending_fUST_20250424
["ID","MTS","AMOUNT","RATE_DAILY","PERIOD"]
[358832672,1745487040123,-505.83,0.00019178,2]
[358832673,1745487040132,-857.740625,0.00019178,2]
[358832674,1745487040144,-500.0,0.00019178,2]
[358832675,1745487040154,-857.740625,0.00019178,2]
[358832676,1745487040163,-500.0,0.00019178,2]
[358832677,1745487040173,-500.0,0.00019178,2]
[358832678,1745487040182,-1046.45,0.00019178,2]
[358832679,1745487040192,-500.0,0.00019178,2]
[358832680,1745487040201,-646.92,0.00019178,2]
[358832681,1745487040211,-608.32,0.00019178,2]
[358832682,1745487040220,-500.0,0.00019178,2]
[358832683,1745487040230,-500.0,0.00019178,2]
[358832684,1745487040240,-500.0,0.00019178,2]
[358832685,1745487040249,-500.0,0.00019178,2]
[358832686,1745487040259,-500.0,0.00019178,2]
[358832687,1745487040268,-500.0,0.00019178,2]
[358832688,1745487040278,-500.0,0.00019178,2]
[358832689,1745487040288,-500.0,0.00019178,2]
[358832690,1745487040297,-848.04,0.00019178,2]
[358832691,1745487040307,-500.0,0.00019178,2]
[358832692,1745487040317,-500.0,0.00019178,2]
[358832693,1745487040326,-500.0,0.00019178,2]
[358832694,1745487040336,-692.74,0.00019178,2]
[358832695,1745487040346,-534.86129718,0.00019178,2]
[358832696,1745487040356,-500.0,0.00019178,2]
[358832697,1745487040365,-156.4152992,0.00019178,2]
[358832698,1745487040375,-500.0,0.00019178,2]
[358832699,1745487040384,-608.08,0.00019178,2]
[358832700,1745487040394,-500.0,0.00019178,2]
[358832701,1745487040403,-1528.66,0.00019178,2]
[358832702,1745487040413,-239.16673546,0.00019178,2]
[358832703,1745487040422,-500.0,0.00019178,2]
[358832704,1745487040432,-500.0,0.00019178,2]
[358832705,1745487040442,-500.0,0.00019178,2]
[358832706,1745487040452,-500.0,0.00019178,2]
[358832707,1745487040461,-500.0,0.00019178,2]
[358832708,1745487040471,-500.0,0.00019178,2]
[358832709,1745487040481,-500.0,0.00019178,2]
[358832710,1745487040492,-359.40414634,0.00019178,2]
[358832711,1745487040501,-500.0,0.00019178,2]
[358832712,1745487040511,-151.0,0.00019178,2]
[358832713,1745487040521,-151.0,0.00019178,2]
[358832714,1745487040530,-500.0,0.00019178,2]
[358832715,1745487040539,-500.0,0.00019178,2]
[358832716,1745487040549,-151.0,0.00019178,2]
[358832717,1745487040558,-151.0,0.00019178,2]
[358832718,1745487040568,-1061.89,0.00019178,2]
[358832719,1745487040577,-500.0,0.00019178,2]
[358832720,1745487040587,-319.91978056,0.00019178,2]
[358832721,1745487040596,-500.0,0.00019178,2]
[358832722,1745487040606,-795.2,0.00019178,2]
[358832723,1745487040615,-2722.35,0.00019178,2]
[358832724,1745487040625,-529.61,0.00019178,2]
[358832725,1745487040634,-500.0,0.00019178,2]
[358832726,1745487040644,-605.45,0.00019178,2]
[358832727,1745487040653,-707.2,0.00019178,2]
[358832728,1745487040663,-500.0,0.00019178,2]
[358832729,1745487040672,-500.0,0.00019178,2]
[358832730,1745487040682,-505.31200336,0.00019178,2]
[358832731,1745487040691,-151.0,0.00019178,2]
[358832732,1745487040701,-500.0,0.00019178,2]
[358832733,1745487040710,-500.0,0.00019178,2]
[358832734,1745487040723,-500.0,0.00019178,2]
[358832735,1745487040733,-500.0,0.00019178,2]
[358832736,1745487040743,-321.65078627,0.00019178,2]
[358832737,1745487040754,-503.08872283,0.00019178,2]
[358832739,1745487040764,-500.0,0.00019178,2]
[358832741,1745487040774,-500.0,0.00019178,2]
[358832743,1745487040783,-500.0,0.00019178,2]
[358832745,1745487040793,-918.53,0.00019178,2]
[358832747,1745487040803,-500.0,0.00019178,2]
[358832748,1745487040813,-151.0,0.00019178,2]
[358832749,1745487040823,-215.15493924,0.00019178,2]
[358832750,1745487040833,-637.57,0.00019178,2]
[358832751,1745487040843,-500.0,0.00019178,2]
[358832752,1745487040853,-534.8,0.00019178,2]
[358832753,1745487040863,-500.0,0.00019178,2]
[358832754,1745487040873,-500.0,0.00019178,2]
[358832755,1745487040883,-500.0,0.00019178,2]
[358832756,1745487040893,-500.0,0.00019178,2]
[358832757,1745487040903,-242.248615,0.00019178,2]
[358832758,1745487040913,-766.32,0.00019178,2]
[358832759,1745487040923,-500.0,0.00019178,2]
[358832760,1745487040933,-500.0,0.00019178,2]
[358832761,1745487040944,-259.65935523,0.00019178,2]
[358832762,1745487040957,-502.3,0.00019178,2]
[358832763,1745487040967,-500.0,0.00019178,2]
[358832764,1745487040977,-578.42208905,0.00019178,2]
[358832765,1745487040987,-500.0,0.00019178,2]
[358832766,1745487040996,-520.54352888,0.00019178,2]
[358832767,1745487041006,-911.98,0.00019178,2]
[358832768,1745487041016,-500.0,0.00019178,2]
[358832769,1745487041027,-500.0,0.00019178,2]
[358832770,1745487041037,-599.19,0.00019178,2]
[358832771,1745487041047,-500.0,0.00019178,2]
[358832772,1745487041057,-2183.55,0.00019178,2]
[358832773,1745487041066,-500.0,0.00019178,2]
[358832774,1745487041077,-500.0,0.00019178,2]
[358832775,1745487041087,-500.0,0.00019178,2]
[358832776,1745487041097,-160.85259476,0.00019178,2]
[358832777,1745487041107,-702.99,0.00019178,2]
[358832778,1745487041118,-500.0,0.00019178,2]
[358832779,1745487041128,-500.0,0.00019178,2]
[358832780,1745487041137,-519.24354642,0.00019178,2]
[358832781,1745487041147,-151.0,0.00019178,2]
[358832782,1745487041348,-156.338475,0.00019178,2]
[358832783,1745487041359,-500.0,0.00019178,2]
[358832784,1745487041369,-538.66963131,0.00019178,2]
[358832785,1745487041379,-500.0,0.00019178,2]
[358832786,1745487041388,-500.0,0.00019178,2]
[358832787,1745487041397,-500.0,0.00019178,2]
[358832788,1745487041407,-500.0,0.00019178,2]
[358832789,1745487041416,-500.92,0.00019178,2]
[358832790,1745487041426,-500.0,0.00019178,2]
[358832791,1745487041436,-500.0,0.00019178,2]
[358832792,1745487041445,-500.0,0.00019178,2]
[358832793,1745487041454,-500.0,0.00019178,2]
[358832794,1745487041463,-500.0,0.00019178,2]
[358832795,1745487041473,-500.0,0.00019178,2]
[358832796,1745487041482,-500.0,0.00019178,2]
[358832797,1745487041493,-500.0,0.00019178,2]
[358832798,1745487041503,-500.0,0.00019178,2]
[358832799,1745487041513,-500.0,0.00019178,2]
[358832800,1745487041522,-510.79,0.00019178,2]
[358832801,1745487041532,-506.33442829,0.00019178,2]
[358832802,1745487041541,-151.0,0.00019178,2]
[358832803,1745487041550,-151.0,0.00019178,2]
[358832804,1745487041559,-500.0,0.00019178,2]
[358832805,1745487041569,-500.0,0.00019178,2]
[358832806,1745487041579,-500.0,0.00019178,2]
[358832807,1745487041590,-500.0,0.00019178,2]
[358832808,1745487041599,-500.0,0.00019178,2]
[358832809,1745487041609,-500.0,0.00019178,2]
[358832810,1745487041619,-500.0,0.00019178,2]
[358832811,1745487041629,-513.52061192,0.00019178,2]
[358832812,1745487041639,-500.0,0.00019178,2]
[358832813,1745487041648,-500.0,0.00019178,2]
[358832814,1745487041658,-500.0,0.00019178,2]
[358832815,1745487041667,-500.0,0.00019178,2]
[358832816,1745487041677,-851.13,0.00019178,2]
[358832817,1745487041686,-500.0,0.00019178,2]
[358832818,1745487041696,-500.0,0.00019178,2]
[358832819,1745487041705,-500.0,0.00019178,2]
[358832820,1745487041715,-500.0,0.00019178,2]
[358832821,1745487041724,-192.302967,0.00019178,2]
[358832822,1745487041734,-982.1,0.00019178,2]
[358832823,1745487041743,-192.302967,0.00019178,2]
[358832824,1745487041752,-192.302967,0.00019178,2]
[358832825,1745487041762,-192.302967,0.00019178,2]
[358832826,1745487041771,-500.0,0.00019178,2]
[358832827,1745487041781,-560.31,0.00019178,2]
[358832828,1745487041790,-268.12950632,0.00019178,2]
[358832829,1745487041800,-1042.63,0.00019178,2]
[358832830,1745487041809,-500.0,0.00019178,2]
[358832831,1745487041820,-500.0,0.00019178,2]
[358832832,1745487041830,-153.333084,0.00019178,2]
[358832833,1745487041839,-500.0,0.00019178,2]
[358832834,1745487041849,-500.0,0.00019178,2]
[358832835,1745487041859,-500.0,0.00019178,2]
[358832836,1745487041869,-500.0,0.00019178,2]
[358832837,1745487041878,-500.0,0.00019178,2]
[358832838,1745487041889,-500.0,0.00019178,2]
[358832839,1745487041899,-2204.78,0.00019178,2]
[358832840,1745487041909,-500.0,0.00019178,2]
[358832841,1745487041918,-268.69791272,0.00019178,2]
[358832842,1745487041928,-856.7,0.00019178,2]
[358832843,1745487041937,-199.826802,0.00019178,2]
[358832844,1745487041952,-502.67361764,0.00019178,2]
[358832845,1745487041961,-1960.97,0.00019178,2]
[358832846,1745487041970,-500.0,0.00019178,2]
[358832847,1745487041980,-3883.83,0.00019178,2]
[358832848,1745487041990,-500.0,0.00019178,2]
[358832849,1745487041999,-506.26756306,0.00019178,2]
[358832850,1745487042010,-500.0,0.00019178,2]
[358832851,1745487042020,-666.99,0.00019178,2]
[358832852,1745487042029,-1418.19,0.00019178,2]
[358832853,1745487042038,-893.46,0.00019178,2]
[358832854,1745487042048,-500.0,0.00019178,2]
[358832855,1745487042062,-500.0,0.00019178,2]
[358832856,1745487042071,-500.0,0.00019178,2]
[358832857,1745487042081,-996.19,0.00019178,2]
[358832858,1745487042090,-1394.53,0.00019178,2]
[358832859,1745487042100,-500.0,0.00019178,2]
[358832860,1745487042111,-4560.15,0.00019178,2]
[358832861,1745487042120,-979.95,0.00019178,2]
[358832862,1745487042130,-500.0,0.00019178,2]
[358832863,1745487042139,-500.0,0.00019178,2]
[358832864,1745487042149,-3186.96,0.00019178,2]
[358832865,1745487042158,-500.0,0.00019178,2]
[358832866,1745487042168,-500.0,0.00019178,2]
[358832867,1745487042178,-500.0,0.00019178,2]
[358832868,1745487042187,-730.63,0.00019178,2]
[358832869,1745487042197,-749.64,0.00019178,2]
[358832870,1745487042209,-500.0,0.00019178,2]
[358832871,1745487042219,-500.0,0.00019178,2]
[358832872,1745487042229,-1000.0,0.00019178,2]
[358832873,1745487042239,-500.0,0.00019178,2]
[358832874,1745487042248,-500.0,0.00019178,2]
[358832875,1745487042258,-2936.41,0.00019178,2]
[358832876,1745487042267,-2936.41,0.00019178,2]
[358832877,1745487042277,-2936.41,0.00019178,2]
[358832878,1745487042286,-2936.41,0.00019178,2]
[358832879,1745487042295,-500.0,0.00019178,2]
[358832880,1745487042304,-2936.41,0.00019178,2]
[358832881,1745487042314,-151.0,0.00019178,2]
[358832882,1745487042323,-2936.41,0.00019178,2]
[358832883,1745487042333,-151.0,0.00019178,2]
[358832884,1745487042342,-500.0,0.00019178,2]
[358832885,1745487042352,-2936.41,0.00019178,2]
[358832886,1745487042361,-2936.41,0.00019178,2]
[358832887,1745487042371,-2936.41,0.00019178,2]
[358832888,1745487042381,-1028.13,0.00019178,2]
[358832889,1745487042391,-2936.41,0.00019178,2]
[358832890,1745487042401,-513.04378497,0.00019178,2]
[358832891,1745487042410,-2936.41,0.00019178,2]
[358832892,1745487042420,-2936.41,0.00019178,2]
[358832893,1745487042430,-2936.41,0.00019178,2]
[358832894,1745487042440,-2936.41,0.00019178,2]
[358832895,1745487042449,-2936.41,0.00019178,2]
[358832896,1745487042459,-2936.41,0.00019178,2]
[358832897,1745487042468,-2936.41,0.00019178,2]
[358832898,1745487042478,-2936.41,0.00019178,2]
[358832899,1745487042488,-2936.41,0.00019178,2]
[358832900,1745487042497,-2936.41,0.00019178,2]
[358832901,1745487042506,-500.0,0.00019178,2]
[358832902,1745487042516,-2936.41,0.00019178,2]
[358832903,1745487042526,-2936.41,0.00019178,2]
[358832904,1745487042537,-2936.41,0.00019178,2]
[358832905,1745487042546,-2936.51709236,0.00019178,2]
[358832906,1745487042555,-1192.29,0.00019178,2]
[358832907,1745487042565,-500.0,0.00019178,2]
[358832908,1745487042575,-500.0,0.00019178,2]
[358832909,1745487042584,-500.0,0.00019178,2]
[358832910,1745487042594,-500.0,0.00019178,2]
[358832911,1745487042603,-433.20633846,0.00019178,2]
[358832912,1745487042613,-1289.31,0.00019178,2]
[358832913,1745487042624,-500.0,0.00019178,2]
[358832915,1745487042633,-2595.31,0.00019178,2]
[358832916,1745487042643,-867.14,0.00019178,2]
[358832917,1745487042653,-500.0,0.00019178,2]
[358832918,1745487042662,-500.0,0.00019178,2]
[358832919,1745487042671,-275.40622046,0.00019178,2]
[358832920,1745487042682,-500.0,0.00019178,2]
[358832921,1745487042692,-500.0,0.00019178,2]
[358832922,1745487042702,-500.0,0.00019178,2]
[358832923,1745487042712,-500.0,0.00019178,2]
[358832924,1745487042721,-500.0,0.00019178,2]
[358832925,1745487042731,-500.0,0.00019178,2]
[358832928,1745487042740,-3776.64,0.00019178,2]
[358832931,1745487042749,-152.01562,0.00019178,2]
[358832932,1745487042758,-475.15000393,0.00019178,2]
[358832933,1745487042767,-500.0,0.00019178,2]
[358832934,1745487042777,-500.0,0.00019178,2]
[358832935,1745487042786,-500.0,0.00019178,2]
[358832936,1745487042796,-500.0,0.00019178,2]
[358832937,1745487042805,-500.0,0.00019178,2]
[358832938,1745487042814,-500.0,0.00019178,2]
[358832939,1745487042824,-500.0,0.00019178,2]
[358832940,1745487042833,-500.0,0.00019178,2]
[358832941,1745487042843,-500.0,0.00019178,2]
[358832942,1745487042853,-2043.13,0.00019178,2]
[358832944,1745487042862,-500.0,0.00019178,2]
[358832946,1745487042871,-500.0,0.00019178,2]
[358832947,1745487042881,-500.0,0.00019178,2]
[358832948,1745487042891,-606.19660616,0.00019178,2]
[358832949,1745487042900,-500.0,0.00019178,2]
[358832950,1745487042909,-932.58,0.00019178,2]
[358832951,1745487042919,-528.97,0.00019178,2]
[358832952,1745487042929,-500.0,0.00019178,2]
[358832953,1745487042938,-500.0,0.00019178,2]
[358832954,1745487042951,-3763.8,0.00019178,2]
[358832955,1745487042961,-500.0,0.00019178,2]
[358832957,1745487042970,-500.0,0.00019178,2]
[358832958,1745487042980,-500.0,0.00019178,2]
[358832959,1745487042991,-953.7,0.00019178,2]
[358832960,1745487043000,-500.0,0.00019178,2]
[358832961,1745487043010,-500.0,0.00019178,2]
[358832962,1745487043021,-711.77,0.00019178,2]
[358832963,1745487043031,-500.0,0.00019178,2]
[358832964,1745487043041,-500.0,0.00019178,2]
[358832965,1745487043052,-502.30447379,0.00019178,2]
[358832966,1745487043061,-500.0,0.00019178,2]
[358832967,1745487043070,-500.0,0.00019178,2]
[358832968,1745487043079,-6008.87,0.00019178,2]
[358832969,1745487043089,-1824.6,0.00019178,2]
[358832970,1745487043099,-1264.36,0.00019178,2]
[358832971,1745487043108,-500.0,0.00019178,2]
[358832972,1745487043118,-504.48390921,0.00019178,2]
[358832973,1745487043127,-3054.24,0.00019178,2]
[358832974,1745487043137,-500.0,0.00019178,2]
[358832975,1745487043146,-500.0,0.00019178,2]
[358832976,1745487043155,-500.0,0.00019178,2]
[358832977,1745487043165,-500.0,0.00019178,2]
[358832978,1745487043175,-500.0,0.00019178,2]
[358832979,1745487043185,-685.68,0.00019178,2]
[358832980,1745487043194,-175.30892102,0.00019178,2]
[358832981,1745487043203,-500.0,0.00019178,2]
[358832982,1745487043213,-1155.18,0.00019178,2]
[358832983,1745487043223,-729.49,0.00019178,2]
[358832984,1745487043232,-500.0,0.00019178,2]
[358832986,1745487043241,-500.0,0.00019178,2]
[358832988,1745487043251,-757.31,0.00019178,2]
[358832990,1745487043261,-4469.56,0.00019178,2]
[358832993,1745487043270,-500.0,0.00019178,2]
[358832995,1745487043279,-500.0,0.00019178,2]
[358832996,1745487043289,-500.0,0.00019178,2]
[358832997,1745487043299,-805.2,0.00019178,2]
[358832998,1745487043308,-502.34817361,0.00019178,2]
[358832999,1745487043317,-500.0,0.00019178,2]
[358833000,1745487043327,-502.26858678,0.00019178,2]
[358833001,1745487043336,-703.83,0.00019178,2]
[358833002,1745487043346,-500.0,0.00019178,2]
[358833003,1745487043355,-500.0,0.00019178,2]
[358833004,1745487043365,-500.0,0.00019178,2]
[358833005,1745487043375,-669.39,0.00019178,2]
[358833006,1745487043385,-500.0,0.00019178,2]
[358833007,1745487043394,-4323.01,0.00019178,2]
[358833008,1745487043404,-502.76787948,0.00019178,2]
[358833009,1745487043413,-500.0,0.00019178,2]
[358833010,1745487043423,-500.0,0.00019178,2]
[358833011,1745487043432,-800.78,0.00019178,2]
[358833012,1745487043442,-500.0,0.00019178,2]
[358833013,1745487043453,-500.0,0.00019178,2]
[358833014,1745487043463,-500.0,0.00019178,2]
[358833015,1745487043473,-500.0,0.00019178,2]
[358833016,1745487043482,-5316.26,0.00019178,2]
[358833017,1745487043491,-500.0,0.00019178,2]
[358833018,1745487043501,-500.0,0.00019178,2]
[358833019,1745487043510,-500.0,0.00019178,2]
[358833020,1745487043519,-157.99606669,0.00019178,2]
[358833021,1745487043530,-601.0,0.00019178,2]
[358833022,1745487043539,-582.71,0.00019178,2]
[358833023,1745487043549,-500.0,0.00019178,2]
[358833024,1745487043560,-500.0,0.00019178,2]
[358833025,1745487043570,-500.0,0.00019178,2]
[358833026,1745487043580,-9000.0,0.00019178,2]
[358833027,1745487043590,-9000.0,0.00019178,2]
[358833028,1745487043600,-500.0,0.00019178,2]
[358833029,1745487043609,-556.2338094,0.00019178,2]
[358833030,1745487043652,-353.0361906,0.00019178,2]
[358833031,1745487043661,-9000.0,0.00019178,2]
[358833032,1745487043671,-500.0,0.00019178,2]
[358833033,1745487043681,-9000.0,0.00019178,2]
[358833034,1745487043691,-500.0,0.00019178,2]
[358833035,1745487043700,-509.23647392,0.00019178,2]
[358833036,1745487043710,-1664.58,0.00019178,2]
[358833037,1745487043719,-855.43,0.00019178,2]
[358833038,1745487043728,-500.0,0.00019178,2]
[358833039,1745487043738,-500.0,0.00019178,2]
[358833040,1745487043748,-500.0,0.00019178,2]
[358833041,1745487043757,-5673.28,0.00019178,2]
[358833042,1745487043766,-500.0,0.00019178,2]
[358833043,1745487043775,-500.0,0.00019178,2]
[358833044,1745487043785,-1252.4,0.00019178,2]
[358833045,1745487043794,-500.0,0.00019178,2]
[358833046,1745487043803,-300.0,0.00019178,2]
[358833047,1745487043813,-721.8241212,0.000192,2]
[358833048,1745487043823,-723.0056206,0.000192,2]
[358833049,1745487043832,-361.5028103,0.000192,2]
[358833050,1745487043842,-157.1454962,0.00019205,2]
[358833051,1745487043851,-763.6215936,0.00019205,2]
[358833052,1745487043861,-349.4632853,0.00019205,2]
[358833053,1745487043871,-169.89735726,0.00019239,2]
[358833054,1745487043880,-18249.05778046,0.00019257,2]
[358833055,1745487043892,-2414.87106916,0.00019257,2]
[358833056,1745487043902,-361.5028103,0.000193,2]
[358833057,1745487043912,-157.2502195,0.000193,2]
[358833058,1745487043922,-361.5028103,0.000193,2]
[358833059,1745487043933,-361.5028103,0.000193,2]
[358833060,1745487043944,-157.2502195,0.000193,2]
[358833061,1745487043956,-24.59570215,0.000193,2]
[358833067,1745487046245,-1544.68664419,0.000179,2]
[358833068,1745487046255,-336.90710815,0.000193,2]
[358833069,1745487046264,-157.2502195,0.000193,2]
[358833070,1745487046274,-157.2502195,0.000193,2]
[358833071,1745487046283,-8.30580825,0.00019352,2]
[358833072,1745487046295,-161.59154901,0.00019352,2]
[358833073,1745487046304,-151.0,0.000194,2]
[358833074,1745487046313,-151.0,0.000194,2]
[358833075,1745487046323,-151.0,0.000194,2]
[358833076,1745487046332,-160.0,0.00019451,3]
[358833077,1745487046341,-840.0731918,0.00019451,3]
[358833078,1745487046351,-5142.55612844,0.00019451,3]
[358833079,1745487046442,-500.0,0.00019178,2]
[358833080,1745487046452,-502.68867353,0.00019178,2]
[358833081,1745487046461,-7433.93873678,0.00019451,3]
[358833082,1745487046471,-151.0,0.00019452,2]
[358833083,1745487046481,-152.770878,0.00019452,2]
[358833084,1745487046491,-151.0,0.00019452,2]
[358833085,1745487046500,-151.0,0.00019452,2]
[358833086,1745487046510,-151.0,0.00019452,2]
[358833087,1745487046520,-151.0,0.00019452,2]
[358833088,1745487046529,-151.0,0.00019452,2]
[358833089,1745487046538,-151.0,0.00019452,2]
[358833090,1745487046547,-151.0,0.00019452,2]
[358833091,1745487046557,-151.0,0.00019452,2]
[358833092,1745487046566,-151.0,0.00019452,2]
[358833093,1745487046575,-151.0,0.00019452,2]
[358833094,1745487046585,-151.0,0.00019452,2]
[358833095,1745487046594,-151.0,0.00019452,2]
[358833096,1745487046604,-151.0,0.00019452,2]
[358833097,1745487046613,-151.431716,0.00019452,2]
[358833098,1745487046622,-151.0,0.00019452,2]
[358833099,1745487046631,-151.0,0.00019452,2]
[358833100,1745487046641,-151.0,0.00019452,2]
[358833101,1745487046651,-154.099387,0.00019452,2]
[358833102,1745487046660,-151.0,0.00019452,2]
[358833103,1745487046670,-151.0,0.00019452,2]
[358833104,1745487046679,-151.0,0.00019452,2]
[358833105,1745487046689,-151.0,0.00019452,2]
[358833106,1745487046699,-151.0,0.00019452,2]
[358833107,1745487046708,-151.0,0.00019452,2]
[358833108,1745487046717,-152.830517,0.00019452,2]
[358833109,1745487046726,-500.0,0.00019452,2]
[358833110,1745487046735,-151.0,0.00019452,2]
[358833111,1745487046745,-220.099244,0.00019452,2]
[358833112,1745487046753,-500.0,0.00019452,2]
[358833113,1745487046763,-653.05,0.00019452,2]
[358833114,1745487046772,-151.0,0.00019452,2]
[358833115,1745487046781,-151.0,0.00019452,2]
[358833116,1745487046790,-500.0,0.00019452,2]
[358833117,1745487046799,-987.3,0.00019452,2]
[358833118,1745487046809,-500.0,0.00019452,2]
[358833119,1745487046819,-500.0,0.00019452,2]
[358833120,1745487046828,-500.0,0.00019452,2]
[358833121,1745487046838,-829.64,0.00019452,2]
[358833122,1745487046847,-500.0,0.00019452,2]
[358833123,1745487046856,-500.0,0.00019452,2]
[358833124,1745487046866,-500.0,0.00019452,2]
[358833125,1745487046876,-500.0,0.00019452,2]
[358833126,1745487046886,-500.0,0.00019452,2]
[358833127,1745487046897,-151.0,0.00019452,2]
[358833128,1745487046906,-500.0,0.00019452,2]
[358833129,1745487046915,-952.28,0.00019452,2]
[358833130,1745487046925,-518.19,0.00019452,2]
[358833131,1745487046935,-500.0,0.00019452,2]
[358833132,1745487046944,-619.1056538,0.00019452,2]
[358833133,1745487046958,-500.0,0.00019452,2]
[358833134,1745487046967,-500.0,0.00019452,2]
[358833135,1745487046977,-500.0,0.00019452,2]
[358833136,1745487046986,-500.0,0.00019452,2]
[358833137,1745487046995,-500.0,0.00019452,2]
[358833138,1745487047005,-500.0,0.00019452,2]
[358833139,1745487047014,-500.0,0.00019452,2]
[358833140,1745487047024,-500.0,0.00019452,2]
[358833141,1745487047033,-500.0,0.00019452,2]
[358833142,1745487047043,-500.0,0.00019452,2]
[358833143,1745487047053,-210.942219,0.00019452,2]
[358833144,1745487047062,-510.03,0.00019452,2]
[358833145,1745487047071,-500.0,0.00019452,2]
[358833146,1745487047081,-500.0,0.00019452,2]
[358833147,1745487047090,-500.0,0.00019452,2]
[358833148,1745487047100,-500.0,0.00019452,2]
[358833149,1745487047110,-500.0,0.00019452,2]
[358833150,1745487047120,-500.0,0.00019452,2]
[358833151,1745487047129,-500.0,0.00019452,2]
[358833152,1745487047139,-500.0,0.00019452,2]
[358833153,1745487047148,-500.0,0.00019452,2]
[358833154,1745487047157,-500.0,0.00019452,2]
[358833155,1745487047167,-557.49,0.00019452,2]
[358833156,1745487047176,-500.0,0.00019452,2]
[358833157,1745487047186,-504.31668266,0.00019452,2]
[358833158,1745487047311,-500.0,0.00019452,2]
[358833159,1745487047321,-500.0,0.00019452,2]
[358833160,1745487047331,-508.2124314,0.00019452,2]
[358833161,1745487047341,-1289.87,0.00019452,2]
[358833162,1745487047350,-500.0,0.00019452,2]
[358833163,1745487047359,-500.0,0.00019452,2]
[358833164,1745487047369,-291.52019136,0.00019452,2]
[358833165,1745487047379,-598.3,0.00019452,2]
[358833167,1745487047391,-500.0,0.00019452,2]
[358833169,1745487047401,-500.0,0.00019452,2]
[358833170,1745487047411,-150.33291475,0.00019452,2]
[358833171,1745487047421,-669.2,0.00019452,2]
[358833172,1745487047430,-621.286947,0.00019452,2]
[358833173,1745487047440,-500.0,0.00019452,2]
[358833174,1745487047449,-500.0,0.00019452,2]
[358833175,1745487047460,-500.0,0.00019452,2]
[358833176,1745487047470,-503.77678552,0.00019452,2]
[358833177,1745487047480,-500.0,0.00019452,2]
[358833178,1745487047489,-500.0,0.00019452,2]
[358833179,1745487047499,-500.0,0.00019452,2]
[358833180,1745487047508,-500.0,0.00019452,2]
[358833181,1745487047517,-500.0,0.00019452,2]
[358833182,1745487047527,-502.75,0.00019452,2]
[358833183,1745487047537,-500.0,0.00019452,2]
[358833184,1745487047546,-500.0,0.00019452,2]
[358833185,1745487047556,-194.44548754,0.00019452,2]
[358833186,1745487047574,-305.55451246,0.00019452,2]
[358833187,1745487047583,-500.0,0.00019452,2]
[358833188,1745487047593,-500.0,0.00019452,2]
[358833189,1745487047602,-500.0,0.00019452,2]
[358833190,1745487047611,-567.16,0.00019452,2]
[358833191,1745487047621,-500.0,0.00019452,2]
[358833192,1745487047630,-1082.93,0.00019452,2]
[358833193,1745487047642,-2498.09,0.00019452,2]
[358833194,1745487047651,-500.0,0.00019452,2]
[358833195,1745487047660,-500.0,0.00019452,2]
[358833196,1745487047670,-500.0,0.00019452,2]
[358833197,1745487047680,-704.57,0.00019452,2]